[Event "Swietokrzyskie IM Chess-ch 2022"]
[Site "Zagnansk"]
[Date "2022.05.03"]
[Round "5.2"]
[White "Malek, Jan"]
[Black "Kotyk, Michael"]
[Result "1/2-1/2"]
[ECO "D30"]
[WhiteElo "2316"]
[BlackElo "2170"]
[Annotator "TA"]
[PlyCount "147"]
[EventDate "2022.04.29"]
[EventCountry "POL"]
[SourceTitle "playchess.com"]
[Source "ChessBase"]
[SourceQuality "1"]
[TimeControl "40/5400+30:1800+30"]

{[%evp 10,147,4,4,10,18,71,60,84,10,6,6,4,0,5,-7,-10,0,9,10,10,0,0,0,0,8,13,0,28,10,62,14,56,12,40,36,36,36,36,40,108,-27,-25,-137,-122,-128,-120,-124,-98,-135,-68,-64,-67,-54,-62,-60,-58,-66,-69,-69,-64,-79,-79,-80,-80,-79,-79,-164,-89,-92,-89,-92,-92,-92,-93,-120,-73,-88,-102,-108,-98,-95,-108,-93,-68,-68,-66,-66,0,-73,-72,-74,-64,-81,-83,-90,-90,-87,-83,-97,-90,-315,-314,-287,-293,-295,-269,-764,-287,-747,-747,-1045,-1014,-4822,-4822,-9313,-5929,-6045,0,0,0,-42,0,-42,-42,-42,-42,-49,-49,-49,0,-42,-42,-49,-42,-49,-42,-42,-42,-42]} 1. d4 {[%emt 0:00:04]} d5 {[%emt 0:00:50]} 2. c4 {[%emt 0:00:07]} e6 {[%emt 0:00:04]} 3. Nf3 {[%emt 0:00:04]} Nf6 {[%emt 0:00:27]} 4. g3 {[%emt 0:00:06]} Bb4+ {[%emt 0:00:06]} 5. Nbd2 {[%emt 0:00:07]} O-O {[%emt 0:00:32]} 6. Bg2 {[%emt 0:00:09]} dxc4 {[%emt 0:03:22] E01: Catalan: Early deviations.} 7. a3 {[%emt 0:04:18]} Be7 {[%emt 0:06:58]} (7... Bxd2+ $11 8. Bxd2 Bd7) 8. Nxc4 $16 {[%emt 0:02:30]} c5 {[%emt 0:00:16] [#] White is slightly better.} 9. dxc5 $146 {[%emt 0:10:29] White is more active.} ({Better is} 9. O-O $1 $16) ({Predecessor:} 9. O-O Nc6 10. dxc5 Bxc5 11. b4 Be7 12. b5 Na5 13. Nfe5 Nxc4 14. Nxc4 Qc7 15. Qb3 {1-0 (44) Sorokin,A (2486)-Arcuti,D (2349) Mamaia 2017}) 9... Qxd1+ $11 {[%emt 0:02:15]} 10. Kxd1 {[%emt 0:00:04]} Bxc5 {[%emt 0:00:05]} 11. e3 {[%emt 0:00:52]} Bd7 {[%emt 0:03:07]} 12. b4 {[%emt 0:03:09]} Be7 {[%emt 0:00:57]} 13. Bb2 {[%emt 0:15:23]} Ba4+ {[%emt 0:01:21]} 14. Ke2 {[%emt 0:00:10]} Nc6 {[%emt 0:00:25]} 15. Rab1 {[%emt 0:19:43]} Rac8 {[%emt 0:04:52][%cal Oc6b4]} 16. Rhc1 {[%emt 0:03:13]} Bb5 {[%emt 0:03:36][%cal Oc6b4]} 17. Nfd2 $1 {[%emt 0:00:24]} Rfd8 {[%emt 0:04:36]} 18. Ke1 {[%emt 0:02:17]} Ne8 {[%emt 0:11:30]} 19. Bf1 {[%emt 0:03:18]} Nc7 {[%emt 0:10:12]} (19... a6 $11) 20. Ne4 {[%emt 0:01:42]} (20. Nb3 $14) 20... Nd5 {[%emt 0:06:50][%cal Oc6b4]} 21. Ba1 {[%emt 0:06:31][%cal Oe4d6]} (21. Ned6 $5 Bxd6 22. Nxd6 Rxd6 23. Bxb5 $14) 21... f5 {[%emt 0:08:31] [#]} 22. Ned6 {[%emt 0:01:43]} Bxd6 {[%emt 0:01:28]} 23. Nxd6 {[%emt 0:00:03]} Bxf1 {[%emt 0:01:59]} 24. Nxc8 {[%emt 0:00:09]} Bd3 {[%emt 0:01:01] [#]} (24... Bb5 $1 $14) 25. Rb3 {[%emt 0:00:04]} Bb5 $36 {[%emt 0:00:06][%cal Bd3b5,Bb5a4,Ba4c6][%mdl 2080] Black is pushing.} 26. g4 {[%emt 0:17:42]} Rxc8 {[%emt 0:03:57]} 27. gxf5 {[%emt 0:00:13]} exf5 {[%emt 0:00:04]} 28. Rc5 {[%emt 0:01:15][%csl LRb5,LRd5]} Ba4 {[%emt 0:02:55]} 29. Rd3 {[%emt 0:00:10]} Nde7 {[%emt 0:01:57]} (29... Nb6 $17 30. Rd6 g6) 30. b5 $15 {[%emt 0:07:24] [#]} b6 $1 {[%emt 0:00:09]} 31. Rxc6 {[%emt 0:00:06]} Nxc6 {[%emt 0:00:04]} 32. bxc6 {[%emt 0:00:07]} Bxc6 {[%emt 0:05:52][%mdl 4096] Endgame KRB-KRB} ({Reject} 32... Rxc6 33. Rd8+ Kf7 34. Rd7+ Ke6 35. Rxa7 $11) 33. Be5 {[%emt 0:00:25]} Kf7 {[%emt 0:01:10]} 34. f4 {[%emt 0:00:11]} g6 {[%emt 0:00:53]} 35. Rd4 {[%emt 0:01:14]} Ke6 {[%emt 0:01:41]} 36. Rd6+ {[%emt 0:00:16]} Ke7 {[%emt 0:01:52]} 37. Rd4 {[%emt 0:01:36]} Be4 {[%emt 0:00:52]} 38. Ra4 {[%emt 0:01:41]} (38. Kd1 $17) 38... a5 {[%emt 0:00:06]} (38... Rc1+ $19 39. Kd2 Rc2+ 40. Kd1 Rxh2 41. Rxa7+ Ke6) 39. Rd4 $17 {[%emt 0:00:04]} Rc1+ {[%emt 0:01:01]} 40. Rd1 {[%emt 0:00:00]} Rc6 {[%emt 0:00:00]} 41. Rd2 {[%emt 0:16:33]} b5 {[%emt 0:19:52]} 42. Rb2 {[%emt 0:00:15] [#]} Bd3 {[%emt 0:02:08]} ({Black should play} 42... Rc1+ $1 43. Kd2 Ra1) 43. Kd2 {[%emt 0:00:27]} Bc4 {[%emt 0:00:17]} 44. Bc3 {[%emt 0:00:06]} Rd6+ {[%emt 0:02:03]} 45. Ke1 {[%emt 0:02:27]} Rd3 {[%emt 0:00:25][%csl LRc3,LRe3]} 46. Bxa5 {[%emt 0:00:06]} Rxe3+ {[%emt 0:00:04]} 47. Kf2 {[%emt 0:00:06]} Rh3 {[%emt 0:00:05]} 48. Kg2 {[%emt 0:00:11]} Re3 {[%emt 0:01:00]} 49. Kf2 $1 {[%emt 0:00:08]} Re4 {[%emt 0:00:28]} 50. Kf3 {[%emt 0:00:27]} Ke6 {[%emt 0:00:29]} 51. Bb4 {[%emt 0:01:09]} Rd4 {[%emt 0:04:33]} 52. Rd2 {[%emt 0:00:14]} Bd5+ {[%emt 0:00:07]} 53. Kg3 {[%emt 0:00:04]} Re4 {[%emt 0:00:35]} 54. Rd3 {[%emt 0:00:17]} Re2 {[%emt 0:00:19] White must now prevent ...Rg2+.} 55. Bc5 $2 {[%emt 0:00:28]} (55. h4 $17) 55... Rg2+ $19 {[%emt 0:00:21]} 56. Kh3 {[%emt 0:00:01] [#]} Rg4 $1 {[%emt 0:00:31][%csl Gg4][%cal Rd5g2]} 57. Re3+ {[%emt 0:00:55]} Kf6 {[%emt 0:01:13][%csl Gg4][%cal Rd5g2]} 58. Bd4+ {[%emt 0:00:29]} Kf7 {[%emt 0:00:09][%csl Gg4][%cal Rd5g2]} 59. Re2 {[%emt 0:00:19] Prevents Bg2+.} (59. Rg3 Rxf4 60. Bc5) 59... Rxf4 {[%emt 0:00:29]} 60. Bc5 {[%emt 0:00:11]} Rf3+ {[%emt 0:00:42]} 61. Kh4 {[%emt 0:00:57]} h6 {[%emt 0:01:02] ( -> ...g5+)} 62. Re3 {[%emt 0:00:04]} g5+ {[%emt 0:01:48]} 63. Kh5 {[%emt 0:00:06]} Kg7 $2 {[%emt 0:00:10]} ({Black should try} 63... Rxe3 $19 64. Bxe3 Kg7 65. Bxg5 hxg5 66. Kxg5 Be6) 64. Bd4+ $11 {[%emt 0:00:15]} Kf7 {[%emt 0:02:14] Hoping for ...Rxe3.} 65. Rxf3 {[%emt 0:00:20]} Bxf3+ {[%emt 0:00:06]} 66. Kxh6 {[%emt 0:00:05] KB-KB} g4 {[%emt 0:00:05]} 67. Kg5 {[%emt 0:00:10]} Ke6 {[%emt 0:00:04]} 68. Kf4 {[%emt 0:00:04]} Kd5 {[%emt 0:00:10]} 69. Bc3 {[%emt 0:00:08]} Kc4 {[%emt 0:00:05]} (69... Be4 $15) 70. Bb4 {[%emt 0:00:24]} Be4 {[%emt 0:00:10] Black is slightly better.} 71. Bf8 {[%emt 0:00:06]} Kd3 {[%emt 0:00:05]} 72. Bd6 {[%emt 0:00:06]} Ke2 {[%emt 0:00:05]} 73. Bc5 {[%emt 0:00:04]} Kf1 {[%emt 0:00:07]} 74. Kg3 {[%emt 0:00:04] White happily takes the draw.  Weighted Error Value: White=0.36/Black=0.13 (very precise)} 1/2-1/2

[Event "Swietokrzyskie IM Chess-ch 2022"]
[Site "Zagnansk"]
[Date "2022.05.03"]
[Round "5.3"]
[White "Manik, GM Mikulas"]
[Black "Nowak, FM Lukasz"]
[Result "1/2-1/2"]
[ECO "C78"]
[WhiteElo "2367"]
[BlackElo "2376"]
[Annotator "TA"]
[PlyCount "41"]
[EventDate "2022.04.29"]
[EventCountry "POL"]
[SourceTitle "playchess.com"]
[Source "ChessBase"]
[SourceQuality "1"]
[TimeControl "40/5400+30:1800+30"]

{[%evp 19,41,0,4,-29,-7,0,0,0,0,0,0,0,-3,-8,-11,0,0,0,7,0,0,4,25,25]} 1. e4 {[%emt 0:00:03]} e5 {[%emt 0:00:09]} 2. Nf3 {[%emt 0:00:13]} Nc6 {[%emt 0:00:09]} 3. Bb5 {[%emt 0:00:04][%cal Bf1b5,Bb5a4,Ba4b3][%mdl 32]} a6 {[%emt 0:00:10]} 4. Ba4 {[%emt 0:00:03]} Nf6 {[%emt 0:00:09]} 5. O-O {[%emt 0:00:05]} Bc5 {[%emt 0:00:11]} 6. c3 {[%emt 0:00:38]} b5 {[%emt 0:00:09]} 7. Bb3 {[%emt 0:00:40]} d6 {[%emt 0:00:13]} 8. d4 {[%emt 0:01:23]} Bb6 {[%emt 0:00:15]} 9. h3 {[%emt 0:03:36]} Bb7 {[%emt 0:01:12]} 10. Re1 {[%emt 0:01:11]} O-O {[%emt 0:03:38]} 11. Be3 {[%emt 0:03:21] C78: Ruy Lopez: Archangelsk and Möller Defences.} exd4 {[%emt 0:06:21]} ({Don't play} 11... Nxe4 12. d5 $14) 12. cxd4 {[%emt 0:00:19]} Na5 {[%emt 0:00:14]} (12... Nxe4 $2 13. d5 $18) 13. d5 {[%emt 0:01:18] The position is equal.} Bxe3 {[%emt 0:08:38]} 14. Rxe3 {[%emt 0:00:08]} Re8 {[%emt 0:00:12]} 15. Nbd2 {[%emt 0:00:40] [#]} c6 $146 {[%emt 0:02:33]} ({Predecessor:} 15... Nxb3 16. Qxb3 c6 17. dxc6 Bxc6 18. Qd3 Bb7 19. Nd4 g6 20. Rae1 Rc8 21. Rg3 d5 {½-½ (21) Maximov,D (2432)-Papenin,N (2384) Dnipropetrovsk 2004}) 16. dxc6 {[%emt 0:05:16]} Bxc6 {[%emt 0:00:42][%cal Rf6e4]} 17. Bc2 {[%emt 0:10:24]} Rc8 {[%emt 0:02:11]} 18. b4 {[%emt 0:03:06]} Nc4 {[%emt 0:02:51]} 19. Nxc4 {[%emt 0:00:21]} bxc4 {[%emt 0:00:10]} 20. Qd4 {[%emt 0:04:07]} Qc7 {[%emt 0:07:19]} 21. Qxc4 {[%emt 0:04:08] Not much happened in this game.  Weighted Error Value: White=0.04 (flawless) /Black=0.04 (flawless)} 1/2-1/2

[Event "Swietokrzyskie IM Chess-ch 2022"]
[Site "Zagnansk"]
[Date "2022.05.03"]
[Round "5.4"]
[White "Vlachos, IM Anatole"]
[Black "Prokofiev, Valentyn"]
[Result "1-0"]
[ECO "C83"]
[WhiteElo "2406"]
[BlackElo "2287"]
[Annotator "TA"]
[PlyCount "91"]
[EventDate "2022.04.29"]
[EventCountry "POL"]
[SourceTitle "playchess.com"]
[Source "ChessBase"]
[SourceQuality "1"]
[TimeControl "40/5400+30:1800+30"]

{[%evp 20,91,5,2,31,-27,-22,-15,0,0,0,13,29,0,0,10,7,0,0,0,25,36,34,26,43,61,57,59,45,64,95,76,70,84,109,109,111,106,96,96,109,98,132,155,178,155,169,164,152,157,157,157,261,203,220,207,411,421,432,424,491,451,600,599,583,546,621,631,627,638,608,613,1696,928]} 1. e4 {[%emt 0:00:04]} e5 {[%emt 0:00:02]} 2. Nf3 {[%emt 0:00:09]} Nc6 {[%emt 0:00:02]} 3. Bb5 {[%emt 0:00:11]} a6 {[%emt 0:00:03]} 4. Ba4 {[%emt 0:00:04]} Nf6 {[%emt 0:00:03]} 5. O-O {[%emt 0:00:17]} Nxe4 {[%emt 0:00:03]} 6. d4 {[%emt 0:00:10]} b5 {[%emt 0:00:01]} 7. Bb3 {[%emt 0:00:10]} d5 {[%emt 0:00:06]} 8. dxe5 {[%emt 0:00:06]} Be6 {[%emt 0:00:03]} 9. c3 {[%emt 0:01:04]} Be7 {[%emt 0:00:09]} 10. Qe2 {[%emt 0:01:47]} O-O {[%emt 0:02:32]} 11. Rd1 {[%emt 0:02:01]} Qd7 {[%emt 0:07:49] C81: Open Ruy Lopez: Keres Variation (9 Qe2).} 12. c4 {[%emt 0:00:20] 12.Nbd2 is setting a new trend.} ({Better is} 12. Nbd2 $14 Nc5 13. Bc2) 12... bxc4 $11 {[%emt 0:00:14]} 13. Bxc4 {[%emt 0:00:07] [#]} Rfd8 $146 {[%emt 0:04:22] The position is equal.} ({Predecessor:} 13... Bc5 14. Be3 f5 15. Bxc5 Nxc5 16. Nc3 d4 17. Ng5 Qe7 18. Nxe6 Nxe6 19. Nd5 Qd7 {1-0 (53) Pommart,P-Lepine Fontes,G France 1994}) 14. Nc3 {[%emt 0:07:43] [#] aiming for Nxd5.} Nxc3 {[%emt 0:07:19]} 15. bxc3 {[%emt 0:00:02]} Qc8 {[%emt 0:08:35]} 16. Bb3 {[%emt 0:04:38]} Na5 {[%emt 0:12:51]} 17. Bc2 {[%emt 0:00:13]} Bf5 {[%emt 0:01:16]} 18. Bxf5 {[%emt 0:04:49]} Qxf5 {[%emt 0:00:04]} 19. Nd4 {[%emt 0:00:24][%cal Bf3d4,Bd4f5,Bf5g3,Bg3e4][%mdl 32]} Qe4 {[%emt 0:07:12]} 20. Qxe4 {[%emt 0:01:40]} dxe4 {[%emt 0:00:03]} 21. Re1 {[%emt 0:08:36]} c5 {[%emt 0:09:25]} 22. Nf5 {[%emt 0:00:17]} Bf8 {[%emt 0:00:06]} 23. Bf4 {[%emt 0:05:28]} Rd3 24. Rac1 {[%emt 0:00:52]} c4 {[%emt 0:11:51]} 25. Ng3 {[%emt 0:06:30] White is more active.} Rb8 {[%emt 0:03:48]} 26. Rc2 {[%emt 0:01:52] Against Rb2} Ba3 {[%emt 0:00:58]} 27. Nxe4 {[%emt 0:00:46]} Rb5 {[%emt 0:05:10]} 28. h4 {[%emt 0:04:09]} h6 {[%emt 0:02:35]} 29. Ree2 {[%emt 0:09:59]} Be7 {[%emt 0:06:30]} 30. h5 {[%emt 0:04:47]} Rb1+ {[%emt 0:01:42]} 31. Kh2 {[%emt 0:00:02]} ({Avoid the trap} 31. Rc1 $2 Rxc1+ 32. Bxc1 Rd1+ 33. Kh2 Rxc1 $19) 31... Rdd1 {[%emt 0:00:56]} 32. Ng3 {[%emt 0:04:47] Inhibits Rh1+.} Nb7 {[%emt 0:01:22][%cal Ba5b7,Bb7c5,Bc5d3][%mdl 32]} 33. Re4 {[%emt 0:03:01]} Nc5 {[%emt 0:00:25]} 34. Rxc4 {[%emt 0:00:41]} Nd3 {[%emt 0:00:07]} 35. Re4 {[%emt 0:02:44]} Rg1 {[%emt 0:01:11]} (35... Re1 $16 {was worth a try.}) 36. f3 {[%emt 0:06:06]} Rge1 {[%emt 0:08:46] [#] ...Rxe4 is the strong threat.} 37. Be3 $1 {[%emt 0:02:48]} f6 $2 {[%emt 0:00:37]} (37... Bg5 {keeps fighting.}) 38. Nf5 $18 {[%emt 0:04:15]} Bc5 {[%emt 0:00:38] White is clearly winning.} 39. exf6 {[%emt 0:03:37] Black must now prevent Re8+.} gxf6 {[%emt 0:00:29]} 40. Rg4+ {[%emt 0:00:00]} Kf8 {[%emt 0:00:00]} 41. Bxc5+ {[%emt 0:22:26]} Nxc5 {[%emt 0:16:04]} 42. Rg6 {[%emt 0:00:25]} Rh1+ {[%emt 0:00:50]} 43. Kg3 {[%emt 0:00:03]} Rxh5 {[%emt 0:00:13]} 44. Rxf6+ {[%emt 0:00:14]} Kg8 {[%emt 0:00:05]} 45. Rd2 {[%emt 0:01:43]} Rf1 {[%emt 0:01:02][%cal Oc5e4]} 46. Kf4 {[%emt 0:02:28] Against Ne4.  Weighted Error Value: White=0.07 (flawless) /Black=0.27 (precise)} 1-0

[Event "Swietokrzyskie IM Chess-ch 2022"]
[Site "Zagnansk"]
[Date "2022.05.03"]
[Round "5.5"]
[White "Krzywda, CM Andrzej"]
[Black "Wikar, WFM Martyna"]
[Result "1-0"]
[ECO "B24"]
[WhiteElo "2152"]
[BlackElo "2197"]
[Annotator "TA"]
[PlyCount "123"]
[EventDate "2022.04.29"]
[EventCountry "POL"]
[SourceTitle "playchess.com"]
[Source "ChessBase"]
[SourceQuality "1"]
[TimeControl "40/5400+30:1800+30"]

{[%evp 9,123,0,2,0,3,0,17,13,4,-21,0,-24,-20,-26,-19,-23,-17,-17,-17,-16,0,7,0,0,45,30,50,-17,-14,-24,0,0,0,-80,-37,-31,-32,-50,-41,-66,-26,-30,-20,-37,-35,-27,-5,-10,-8,-15,-12,-9,-5,-88,0,0,0,0,0,0,0,0,0,0,0,0,0,0,0,0,0,0,5,0,0,0,0,0,8,0,0,0,0,0,11,6,8,8,8,8,8,11,11,6,6,8,18,26,25,25,28,62,88,102,708,714,1292,1039,1085,1150,984,1009,876,867,1811,1605]} 1. e4 {[%emt 0:00:02]} c5 {[%emt 0:00:06]} 2. Nc3 {[%emt 0:00:04]} Nc6 {[%emt 0:00:12]} 3. Bb5 {[%emt 0:00:14]} Nd4 {[%emt 0:00:24]} 4. Nf3 {[%emt 0:00:09]} a6 {[%emt 0:00:33]} 5. Bd3 {[%emt 0:00:29]} g6 {[%emt 0:00:37]} 6. Rb1 {[%emt 0:04:20] B23: Closed Sicilian: Lines without g3.} Nc6 {[%emt 0:10:33]} 7. a3 {[%emt 0:03:51]} b5 {[%emt 0:03:31]} 8. b4 {[%emt 0:01:58] [#] The position is equal.} cxb4 $146 {[%emt 0:04:36]} ({Predecessor:} 8... d6 9. Bb2 Bg7 10. Nd5 Nf6 11. c4 bxc4 12. Bxc4 cxb4 13. axb4 O-O 14. Nxf6+ exf6 {0-1 (76) Ibadov,D (2249)-Lintchevski,D (2567) Khanty-Mansiysk 2021}) 9. Nd5 {[%emt 0:07:10]} Bg7 {[%emt 0:12:07]} 10. axb4 {[%emt 0:02:25]} e6 {[%emt 0:02:54]} 11. Ne3 {[%emt 0:05:30]} Nf6 {[%emt 0:07:21]} 12. e5 {[%emt 0:15:04]} Nd5 {[%emt 0:02:40]} 13. Be4 {[%emt 0:08:28]} Nxe3 {[%emt 0:05:36]} 14. fxe3 {[%emt 0:01:08]} O-O {[%emt 0:02:43]} 15. Bxc6 {[%emt 0:04:42]} dxc6 {[%emt 0:00:03]} 16. d4 {[%emt 0:01:05]} Qd5 {[%emt 0:01:13]} 17. Qd3 {[%emt 0:03:05]} a5 {[%emt 0:03:36]} 18. O-O {[%emt 0:02:52]} (18. Bd2 $1 $14) 18... axb4 $11 {[%emt 0:04:12]} 19. Bd2 {[%emt 0:00:20]} Ra3 {[%emt 0:06:30]} 20. Rb3 {[%emt 0:03:04]} c5 {[%emt 0:10:17]} 21. Rxa3 {[%emt 0:13:57]} (21. dxc5 $11 Bb7 22. Bxb4 Rxb3 23. Qxb3) 21... bxa3 {[%emt 0:05:34]} 22. Qxa3 {[%emt 0:00:56]} cxd4 {[%emt 0:01:06]} 23. exd4 {[%emt 0:00:23]} Bb7 {[%emt 0:00:34]} 24. Qe7 {[%emt 0:04:08]} Ba8 {[%emt 0:02:41]} 25. Bb4 {[%emt 0:03:16]} Rc8 {[%emt 0:00:44]} 26. Bd6 {[%emt 0:02:31]} Bf8 {[%emt 0:04:27]} 27. Qd7 {[%emt 0:00:34]} Qb7 {[%emt 0:02:11]} 28. Qxb7 {[%emt 0:00:30]} Bxb7 {[%emt 0:00:01]} 29. Rb1 {[%emt 0:03:45]} Bc6 {[%emt 0:00:52]} 30. Bxf8 {[%emt 0:02:17]} Kxf8 {[%emt 0:00:16][%mdl 4096] Endgame KRB-KRN} 31. Kf2 {[%emt 0:00:41]} (31. Ne1 $11 {remains equal.}) 31... Bd7 {[%emt 0:01:25]} (31... Bxf3 $17 32. gxf3 Rxc2+ 33. Kg3 Rd2 34. Rxb5 Rxd4 35. Rb8+ Kg7) 32. Rb2 {[%emt 0:01:06]} Rc3 {[%emt 0:00:45]} 33. Ng5 {[%emt 0:00:46]} Bc6 {[%emt 0:04:15]} 34. Nxh7+ {[%emt 0:00:23]} Kg7 {[%emt 0:00:15]} 35. Nf6 {[%emt 0:00:10]} g5 {[%emt 0:00:26]} 36. Nh5+ {[%emt 0:03:32]} Kg6 {[%emt 0:00:40]} 37. Ng3 {[%emt 0:00:02]} Rc4 {[%emt 0:00:41]} 38. Ne2 {[%emt 0:01:18]} Kf5 {[%emt 0:00:50]} 39. c3 {[%emt 0:02:26]} Ra4 {[%emt 0:00:16]} 40. Ke3 {[%emt 0:00:00]} Ra3 {[%emt 0:00:00]} 41. h3 {[%emt 0:17:18]} Kg6 {[%emt 0:18:22]} 42. g3 {[%emt 0:02:21]} Ra1 {[%emt 0:00:58]} 43. h4 {[%emt 0:10:18]} g4 {[%emt 0:06:59]} 44. Nf4+ {[%emt 0:00:27]} Kf5 {[%emt 0:00:33]} 45. Rf2 {[%emt 0:02:33]} Bf3 {[%emt 0:00:37] Against Nd5} 46. h5 {[%emt 0:01:08] [#] Rh2 is the strong threat.} Kg5 {[%emt 0:03:26]} 47. Rb2 {[%emt 0:00:24]} Re1+ {[%emt 0:01:06]} 48. Kf2 {[%emt 0:00:16]} Rc1 {[%emt 0:00:25]} 49. Rxb5 {[%emt 0:00:29] aiming for Rc5.} Rc2+ {[%emt 0:00:26]} 50. Ke3 {[%emt 0:00:13] [#] And now Rc5 would win.} Rxc3+ {[%emt 0:00:07]} 51. Kd2 {[%emt 0:00:12]} Ra3 {[%emt 0:00:45]} 52. Rb8 {[%emt 0:00:31]} Ra1 {[%emt 0:03:09]} 53. Rf8 {[%emt 0:01:05]} Ra2+ {[%emt 0:01:31]} 54. Kc3 {[%emt 0:00:45]} Ra7 {[%emt 0:00:29]} 55. Rh8 {[%emt 0:00:17]} Rc7+ {[%emt 0:00:26]} 56. Kb4 {[%emt 0:00:19]} Kf5 $2 {[%emt 0:00:45][%mdl 8192] This costs Black the game.} (56... Bd5 $16) 57. h6 $18 {[%emt 0:00:16][%cal Bh5h6,Bh6h7][%mdl 32] Black must now prevent h7. White is clearly winning.} Rc1 {[%emt 0:00:22]} 58. Rf8 {[%emt 0:00:23]} Rh1 {[%emt 0:00:15]} 59. Rxf7+ {[%emt 0:00:15]} Ke4 {[%emt 0:00:02]} 60. h7 {[%emt 0:00:46]} Kxd4 {[%emt 0:00:24]} 61. Rd7+ {[%emt 0:00:18]} Bd5 {[%emt 0:00:33]} 62. Nxd5 {[%emt 0:01:07] Weighted Error Value: White=0.12 (very precise) /Black=0.11 (very precise)} 1-0